bitfinex-derivatives/quotes_ETHF0:USTF0_20241022
["timestamp","ask_amount","ask_price","bid_price","bid_amount"]
[1729570910277,3.2078,2639.4,2639.2,0.37902]
[1729570910583,3.2078,2639.4,2638.5,5.53873]
[1729570910584,2.45636773,2639.3,2639.1,1.74903]
[1729570910779,2.45636773,2639.3,2639.1,0.37903]
[1729570910780,1.37,2639.2,2639.1,0.37903]
[1729570910977,1.37,2639.2,2639.0,1.37]
[1729570911177,1.37,2639.1,2639.0,1.74906]
[1729570912779,1.37,2639.1,2639.0,0.93903041]
[1729570913079,1.37,2639.1,2639.0,1.74906]
[1729570914284,1.37,2639.1,2639.0,0.91906]
[1729570914484,1.37,2639.1,2638.7,3.2078]
[1729570914485,5.53865,2639.1,2638.7,3.2078]
[1729570914694,1.37,2638.8,2638.5,0.37912]
[1729570914988,1.37,2638.9,2638.4,3.58694]
[1729570914989,1.37,2638.6,2638.4,3.58694]
[1729570915185,1.37,2638.5,2638.4,0.37915]
[1729570915885,1.37,2638.5,2638.4,1.74915]
[1729570916786,1.37,2638.5,2638.4,1.37]
[1729570916984,1.37,2638.5,2638.4,1.74915]
[1729570919188,1.37,2638.6,2638.4,1.37]
[1729570919388,1.37,2638.6,2638.5,1.74913]
[1729570921691,1.67577005,2638.6,2638.5,1.74913]
[1729570921989,1.67577005,2638.6,2638.5,0.37913]
[1729570924292,1.67577005,2638.6,2638.5,1.74913]
[1729570926388,1.67577005,2638.6,2638.5,0.37913]
[1729570926589,1.67577005,2638.6,2638.5,1.74913]
[1729570931794,0.30577005,2638.6,2638.5,1.74913]
[1729570931995,1.37,2638.7,2638.5,1.37]
[1729570932191,1.37,2638.7,2638.6,1.74912]
[1729570932697,1.37,2638.7,2638.5,1.37]
[1729570932894,1.37,2638.6,2638.5,1.74913]
[1729570941003,2.6869115,2638.8,2638.7,0.3791]
[1729570941501,2.6869115,2638.8,2638.7,1.7491]
[1729570941700,2.368,2638.8,2638.7,0.3791]
[1729570941910,1.37,2638.8,2638.7,0.27229085]
[1729570944810,1.37,2638.8,2638.7,1.64229085]
[1729570945209,1.37,2638.8,2638.6,1.74911]
[1729570945411,0.32041326,2638.9,2638.8,0.37909]
[1729570945613,0.999,2639.0,2638.8,1.37]
[1729570945916,4.2068,2639.1,2638.9,0.37907]
[1729570947307,1.37,2639.0,2638.9,0.37907]
[1729570949809,1.43138681,2639.0,2638.9,0.37907]
[1729570950008,1.43138681,2639.0,2638.7,1.37]
[1729570950211,1.37,2638.8,2638.7,1.37]
[1729570950606,1.37,2638.8,2638.7,1.7491]
[1729570951217,1.37,2638.9,2638.8,0.37909]
[1729570951519,1.43138695,2638.9,2638.8,0.37909]
[1729570952218,1.43138695,2638.9,2638.8,1.74909]
[1729570953119,1.49277119,2638.9,2638.8,1.74909]
[1729570953423,0.06138727,2638.9,2638.8,1.74909]
[1729570957419,0.30543613,2639.1,2638.8,1.37]
[1729570957420,1.67543613,2639.1,2638.8,1.37]
[1729570957612,1.67543613,2639.1,2639.0,1.74906]
[1729570957916,1.73682285,2639.1,2639.0,1.74906]
[1729570958117,1.7368228,2639.1,2639.0,1.74906]
[1729570959021,1.7368228,2639.1,2639.0,1.37]
[1729570959217,1.7368228,2639.1,2638.9,1.74906]
[1729570959523,1.37,2639.0,2638.9,1.74906]
[1729570962224,1.37,2639.1,2639.0,0.37906]
[1729570962522,1.43137173,2639.1,2639.0,0.37906]
[1729570964627,1.37,2639.1,2639.0,0.37906]
[1729570965517,4.60120663,2639.3,2639.0,0.37905]
[1729570965718,1.37,2639.1,2639.0,0.37905]
[1729570968423,1.39340663,2639.3,2639.0,0.37905]
[1729570968424,1.37,2639.2,2639.0,0.37905]
[1729570969323,1.37,2639.2,2639.0,0.37906]
[1729570969524,1.37,2639.2,2639.1,0.37905]
[1729570969930,1.37,2639.2,2639.0,0.37905]
[1729570970727,2.76340663,2639.3,2639.1,1.37]
[1729570970923,1.39340663,2639.3,2639.2,0.37903]
[1729570971326,1.39340663,2639.3,2639.2,40.8]
[1729570971929,0.39440663,2639.3,2639.2,40.8]
[1729570972130,1.37,2639.3,2639.2,40.8]
[1729570975835,1.37,2639.3,2639.2,41.17903]
[1729570976330,1.37,2639.3,2639.2,40.8]
[1729570977225,1.37,2639.3,2639.2,41.17903]
[1729570978629,1.37,2639.3,2639.2,0.37903]
[1729570978933,1.77080797,2639.4,2639.2,1.74903]
[1729570979136,1.37,2639.4,2639.3,0.37902]
[1729570979929,1.43139379,2639.4,2639.3,0.37902]
[1729570981037,1.43139263,2639.4,2639.3,1.74902]
[1729570981331,0.06139181,2639.4,2639.3,1.74902]
[1729570981529,0.06139145,2639.4,2639.3,1.74902]
[1729570983635,1.43139145,2639.4,2639.3,1.74902]
[1729570984336,0.12279568,2639.4,2639.3,1.74902]
[1729570984934,0.12279568,2639.4,2639.3,5.53782]
[1729570985235,0.0613968,2639.4,2639.3,5.53782]
[1729570987635,3.2078,2639.5,2639.3,5.1588]
[1729570987839,3.2078,2639.5,2639.4,1.749]
[1729570988037,3.2078,2639.5,2639.4,5.5378]
[1729570989039,3.2078,2639.8,2639.7,0.37896]
[1729570989341,1.75293547,2640.0,2639.8,0.37893]
[1729570989541,1.37,2640.0,2639.9,1.37]
[1729570991137,1.37,2640.0,2639.8,1.37]
[1729570991337,1.37,2639.9,2639.8,1.37]
[1729570991536,1.37,2639.9,2639.8,1.74894]
[1729570992951,1.37,2639.9,2639.8,1.37]
[1729570993338,1.37,2639.9,2639.8,1.74894]
[1729570994238,1.75972077,2639.9,2639.8,1.74894]
[1729570994549,1.75972077,2639.9,2639.8,1.37]
[1729570994743,1.75972077,2639.9,2639.8,1.74894]
[1729570997242,1.75972077,2639.9,2639.8,1.37]
[1729570997642,1.75972077,2639.9,2639.8,1.74894]
[1729570999340,0.38972077,2639.9,2639.8,1.74894]
[1729570999545,1.37,2640.1,2639.8,1.37]
[1729570999741,1.37,2640.1,2639.9,1.74892]
[1729571000549,1.37,2640.1,2639.9,1.37]
[1729571002450,1.37,2640.0,2639.8,1.37]
[1729571002751,1.37,2639.9,2639.8,1.74894]
[1729571004042,1.37,2639.9,2639.8,1.37]
[1729571004845,1.37,2639.9,2639.7,1.37]
[1729571005145,1.37,2639.8,2639.7,1.74896]
[1729571006540,1.37,2639.8,2639.6,3.2078]
[1729571006748,1.37,2639.8,2639.7,1.37]
[1729571007554,1.37,2639.9,2639.7,1.37]
[1729571010451,0.06142332,2639.8,2639.7,1.37]
[1729571010756,0.06142332,2639.8,2639.7,1.74896]
[1729571010950,0.06142332,2639.8,2639.7,1.37]
[1729571011163,0.06142332,2639.8,2639.4,0.379]
[1729571011164,4.63922332,2639.8,2639.4,0.379]
[1729571011346,1.37,2639.5,2639.3,4.5778]
[1729571011647,1.37,2639.6,2639.4,1.749]
[1729571011852,0.06144471,2639.5,2639.4,1.749]
[1729571012252,1.37,2639.6,2639.4,1.749]
[1729571012458,0.06144871,2639.5,2639.4,1.749]
[1729571012756,1.37,2639.7,2639.4,1.37]
[1729571012959,0.06145605,2639.6,2639.5,1.74898]
[1729571013347,1.37,2639.7,2639.5,1.74898]
[1729571013556,0.06147374,2639.6,2639.5,0.37898]
[1729571013750,1.37,2639.7,2639.5,1.74898]
[1729571014057,1.37,2639.7,2639.6,1.37]
[1729571014249,1.43147933,2639.7,2639.6,1.37]
[1729571016555,1.37,2639.7,2639.6,1.37]
[1729571016770,1.43147968,2639.7,2639.5,0.37898]
[1729571017074,0.06147968,2639.6,2639.5,0.37898]
[1729571017361,0.0614789,2639.6,2639.5,0.37898]
[1729571017655,0.06149191,2639.6,2639.5,0.37898]
[1729571018257,0.06149191,2639.6,2639.5,1.74898]
[1729571018458,1.37,2639.7,2639.5,1.74898]
[1729571019259,1.37,2639.7,2639.5,1.37]
[1729571019565,1.37,2639.7,2639.6,1.74897]
[1729571019759,1.75701318,2639.7,2639.6,1.74897]
[1729571020454,0.38701318,2639.7,2639.6,1.74897]
[1729571020765,1.37,2639.9,2639.6,1.74897]
[1729571020964,1.37,2639.9,2639.8,1.37]
[1729571021170,1.43150029,2639.9,2639.8,1.37]
[1729571021965,1.37,2640.0,2639.8,1.37]
[1729571022667,0.06149935,2639.9,2639.8,1.37]
[1729571022962,1.37,2640.0,2639.8,1.37]
[1729571023364,1.43149947,2639.9,2639.6,1.74896]
[1729571023558,1.37,2639.9,2639.6,1.74896]
[1729571024353,2.336,2639.9,2639.6,1.74896]
[1729571025263,3.59538663,2640.1,2639.6,1.74897]
[1729571025464,1.37,2639.8,2639.6,0.37897]
[1729571030066,1.37,2639.8,2639.5,0.37898]
[1729571030869,1.76216449,2639.8,2639.5,0.37898]
[1729571031961,1.76216449,2639.8,2639.6,0.37897]
[1729571037562,1.76216449,2639.8,2639.7,0.37896]
[1729571038063,1.76216449,2639.8,2639.6,1.37]
[1729571038266,0.39216449,2639.8,2639.7,0.37896]
[1729571038460,2.328,2639.9,2639.8,0.37894]
[1729571038862,1.37,2639.9,2639.8,0.37894]
[1729571039470,1.76073087,2639.9,2639.8,0.37894]
[1729571039969,3.2078,2640.1,2640.0,0.37892]
[1729571040172,5.5358,2640.1,2640.0,1.37]
[1729571040371,5.5358,2640.1,2639.9,1.74893]
[1729571040765,1.43150294,2640.0,2639.9,1.74893]
[1729571041274,1.37,2640.0,2639.9,42.54893]
[1729571041476,1.43150296,2640.0,2639.9,42.54893]
[1729571043765,1.76846071,2640.1,2639.9,42.17]
[1729571043974,0.06150388,2640.0,2639.9,41.17893]
[1729571044182,0.06150388,2640.0,2639.9,42.54893]
[1729571044574,4.97618249,2640.3,2640.1,0.3789]
[1729571044772,1.37,2640.2,2640.1,1.7489]
[1729571044973,1.43150836,2640.2,2640.1,1.7489]
[1729571045581,0.06150836,2640.2,2640.1,5.5369]
[1729571045878,4.1658,2640.6,2640.1,5.158]
[1729571046069,4.1658,2640.6,2640.0,0.99208366]
[1729571046070,3.2078,2640.6,2640.5,1.74884]
[1729571046268,3.26931426,2640.6,2640.5,1.74884]
[1729571046773,3.26931426,2640.6,2640.5,5.53604]
[1729571046978,3.26931426,2640.6,2640.5,4.16604]
[1729571047278,3.26931426,2640.6,2640.5,5.53604]
[1729571047678,0.06151426,2640.6,2640.5,5.53604]
[1729571047880,1.77055234,2640.7,2640.5,5.53604]
[1729571048074,1.77055234,2640.7,2640.6,1.37]
[1729571050080,1.77055234,2640.7,2640.6,1.74883]
[1729571050378,0.40055234,2640.7,2640.6,1.74883]
[1729571050578,1.37,2640.8,2640.6,1.37]
[1729571050875,1.37,2640.8,2640.6,1.74882]
[1729571051776,0.39331862,2640.9,2640.8,0.3788]
[1729571051976,1.37,2641.0,2640.8,1.7488]
[1729571052476,0.958,2641.1,2640.8,1.7488]
[1729571052477,1.37,2640.9,2640.8,1.7488]
[1729571054688,1.37,2641.0,2640.8,1.7488]
[1729571054881,1.37,2641.0,2640.9,1.37]
[1729571056980,1.37,2641.0,2640.9,1.74879]
[1729571057190,3.2078,2641.2,2641.0,0.37877]
[1729571057484,3.2078,2641.2,2641.1,1.74876]
[1729571057685,3.2078,2641.2,2641.1,42.54876]
[1729571057881,4.5778,2641.6,2641.5,0.3787]
[1729571058084,4.5778,2641.6,2641.5,1.7487]
[1729571058477,3.2078,2641.6,2641.5,1.7487]
[1729571058882,1.37,2641.7,2641.5,1.7487]
[1729571059080,1.37,2641.7,2641.6,1.37]
[1729571061384,1.37,2641.8,2641.6,1.37]
[1729571061688,1.37,2641.8,2641.7,1.37]
[1729571062298,1.37,2641.8,2641.6,1.37]
[1729571062903,1.37,2641.7,2641.6,1.37]
[1729571063292,1.55586479,2641.7,2641.6,1.37]
[1729571063489,1.55586479,2641.7,2641.6,1.74869]
[1729571063490,0.18586479,2641.7,2641.6,1.74869]
[1729571063991,4.5778,2642.0,2641.6,4.5778]
[1729571064192,4.5778,2642.0,2641.9,1.37]
[1729571065199,0.38223971,2642.1,2641.9,6.5248]
[1729571065492,4.181,2643.3,2641.9,6.5248]
[1729571065493,3.2078,2642.9,2642.2,0.94651]
[1729571065693,3.2078,2642.9,2642.8,3.11851]
[1729571065894,3.2078,2642.9,2642.8,1.37]
[1729571066399,3.2078,2642.9,2642.8,1.74851]
[1729571066792,3.2078,2642.9,2642.8,1.37]
[1729571067101,3.2078,2642.9,2642.8,1.74851]
[1729571068192,3.2078,2642.9,2642.8,1.37]
[1729571068399,3.2078,2642.9,2642.7,3.33852]
[1729571069394,4.56296496,2643.3,2642.8,0.37851]
[1729571069788,4.56296496,2643.3,2642.7,2.96]
[1729571069991,4.56296496,2643.3,2642.7,3.33852]
[1729571070191,3.59996496,2643.3,2642.9,2.96]
[1729571070393,3.59996496,2643.3,2642.9,3.33849]
[1729571070596,0.39216496,2643.3,2642.7,3.2078]
[1729571070794,0.3784,2643.6,2643.1,2.96]
[1729571071303,3.58623,2643.4,2643.0,2.96]
[1729571072198,0.37843,2643.4,2643.0,2.96]
[1729571073210,3.58623,2643.4,2643.0,2.96]
[1729571074803,0.37845,2643.3,2642.8,2.96]
[1729571075105,1.34145,2643.3,2642.8,2.96]
[1729571075898,0.06159619,2643.2,2642.8,2.96]
[1729571076103,0.37851,2642.9,2642.3,40.8]
[1729571076406,0.3785,2643.0,2642.4,2.96]
[1729571076608,3.2078,2643.1,2642.4,2.96]
[1729571076804,0.37851,2642.9,2642.4,2.96]
[1729571077211,0.3785,2643.0,2642.4,2.96]
[1729571077411,3.2078,2643.1,2642.4,2.96]
[1729571077707,2.96,2643.2,2642.4,2.96]
[1729571077708,3.58632,2642.8,2642.4,2.96]
[1729571078906,3.2078,2642.8,2642.4,2.96]
[1729571080912,4.1708,2642.8,2642.4,2.96]
[1729571082307,4.93073337,2642.8,2642.4,2.96]
[1729571084804,1.72293337,2642.8,2642.4,2.96]
[1729571086498,1.34441337,2642.8,2642.4,2.96]
[1729571086710,1.34441337,2642.8,2642.4,3.33857]
[1729571088611,1.34441337,2642.8,2642.4,3.33856]
[1729571090310,1.34441337,2642.8,2642.6,1.36]
[1729571091115,0.37848,2643.1,2642.7,1.36]
[1729571091408,0.963,2643.0,2642.9,1.36]
[1729571094215,1.36,2643.1,2642.9,1.36]
[1729571094408,0.993,2643.0,2642.9,1.36]
[1729571094613,2.353,2643.0,2642.9,1.36]
[1729571096113,2.353,2643.0,2642.8,1.36]
[1729571100517,2.353,2643.0,2642.7,1.36]
[1729571101923,0.06159994,2642.9,2642.7,1.36]
[1729571102121,0.993,2643.0,2642.7,1.36]
[1729571102324,1.36,2643.1,2642.7,0.37853]
[1729571102628,1.05459774,2643.0,2642.6,0.37854]
[1729571102923,0.993,2643.0,2642.5,1.36]
[1729571103124,0.993,2643.0,2642.7,1.36]
[1729571103624,1.36,2643.1,2642.7,1.36]
[1729571103625,0.06159731,2642.9,2642.7,1.36]
[1729571103828,0.993,2643.0,2642.7,1.36]
[1729571104027,0.06159712,2642.9,2642.7,1.36]
[1729571106121,2.73147,2643.1,2642.7,1.36]
[1729571106431,0.06159712,2643.0,2642.7,1.36]
[1729571107123,0.06160247,2642.9,2642.7,1.36]
[1729571107324,0.06160247,2642.8,2642.7,1.36]
[1729571108127,1.80011247,2642.9,2642.7,1.36]
[1729571108322,0.06160247,2642.8,2642.7,1.36]
[1729571108526,1.73851,2642.9,2642.7,1.36]
[1729571109318,1.73851,2642.8,2642.7,1.36]
[1729571109524,1.36,2642.8,2642.7,1.36]
[1729571111128,4.5678,2642.8,2642.7,1.36]
[1729571111332,0.37854,2642.7,2642.5,1.36]
[1729571111534,1.36,2642.6,2642.5,1.36]
[1729571112032,1.36,2642.8,2642.5,1.36]
[1729571112229,1.36,2642.8,2642.7,1.36]
[1729571112423,0.993,2642.9,2642.7,1.36]
[1729571112629,0.06160465,2642.8,2642.4,1.36]
[1729571112829,3.2078,2643.1,2643.0,0.37849]
[1729571113135,3.2078,2643.1,2643.0,1.36]
[1729571113928,3.2078,2643.1,2643.0,1.73849]
[1729571115829,3.2078,2643.1,2643.0,0.37849]
[1729571116036,13.0662762,2643.4,2643.0,1.36]
[1729571116239,13.0662762,2643.4,2642.7,3.2078]
[1729571116240,3.2078,2643.4,2643.3,1.73844]
[1729571116737,3.2078,2643.4,2643.3,5.52164]
[1729571117339,3.2078,2643.4,2643.3,5.1432]
[1729571119245,3.2078,2643.4,2643.3,5.52164]
[1729571119438,0.40008115,2643.6,2643.4,0.37842]
[1729571119747,0.18813415,2643.7,2643.5,1.73841]
[1729571119938,0.18813415,2643.7,2643.6,1.36]
[1729571120244,1.36,2643.8,2643.6,42.16]
[1729571120446,1.36,2643.8,2643.7,1.36]
[1729571120646,1.42160209,2643.8,2643.7,1.36]
[1729571120845,1.42160209,2643.8,2643.6,42.16]
[1729571121141,1.42160154,2643.7,2643.6,42.16]
[1729571121537,1.36,2643.7,2643.6,42.16]
[1729571122141,1.36,2643.8,2643.6,42.16]
[1729571122446,1.36,2643.8,2643.7,1.36]
[1729571122744,3.2078,2643.9,2643.7,1.36]
[1729571122948,3.2078,2643.9,2643.8,1.36]
[1729571123441,4.5678,2643.9,2643.8,1.36]
[1729571123748,4.62940863,2643.9,2643.7,1.36]
[1729571123940,1.36,2643.8,2643.7,1.36]
[1729571124244,1.36,2643.8,2643.3,3.2078]
[1729571124548,1.36,2643.6,2643.5,1.36]
[1729571124941,3.58616,2643.9,2643.5,1.36]
[1729571124942,1.36,2643.7,2643.5,1.36]
[1729571125141,1.36,2643.7,2643.3,44.38624]
[1729571125142,1.36,2643.7,2643.6,1.36]
[1729571125741,1.36,2643.8,2643.6,1.36]
[1729571125940,1.36,2643.8,2643.7,1.36]
[1729571126148,1.42160601,2643.8,2643.7,1.36]
[1729571126545,0.06160601,2643.8,2643.7,1.36]
[1729571126844,1.36,2643.8,2643.7,1.36]
[1729571127144,1.48321408,2643.8,2643.7,1.36]
[1729571129136,0.06160712,2643.8,2643.7,0.37839]
[1729571129337,0.06160712,2643.8,2643.7,1.73839]
[1729571129540,3.2078,2643.9,2643.7,1.36]
[1729571129743,3.2078,2643.9,2643.8,1.36]
[1729571129940,3.2078,2643.9,2643.8,1.73837]
[1729571130648,3.2078,2643.9,2643.8,1.36]
[1729571131247,0.39279127,2644.1,2643.8,1.36]
[1729571131545,0.39279127,2644.1,2644.0,1.36]
[1729571131546,1.36,2644.1,2644.0,1.36]
[1729571131752,1.42161139,2644.1,2644.0,1.36]
[1729571132944,1.42161139,2644.1,2643.6,3.2078]
[1729571133147,1.36,2643.9,2643.8,1.36]
[1729571133448,1.42161139,2643.9,2643.8,1.36]
[1729571134842,1.42161395,2643.9,2643.8,1.36]
[1729571135446,1.36,2643.9,2643.8,1.36]
[1729571135651,1.42161401,2643.9,2643.8,1.36]
[1729571137639,1.42161401,2643.9,2643.7,0.37838]
[1729571137845,0.06161401,2643.8,2643.7,1.36]
[1729571138045,0.06161401,2643.8,2643.7,1.73839]
[1729571138545,0.06161401,2643.8,2643.7,1.36]
[1729571138546,1.42161401,2643.8,2643.7,1.36]
[1729571138748,1.36,2644.0,2643.7,1.36]
[1729571138950,1.36,2644.0,2643.7,0.37837]
[1729571139250,1.36,2644.0,2643.9,1.36]
[1729571142348,3.2078,2644.2,2643.9,1.36]
[1729571142551,3.2078,2644.2,2644.1,1.36]
[1729571143349,3.2078,2644.2,2644.1,1.73833]
[1729571144751,3.2078,2644.2,2644.0,1.36]
[1729571144752,4.5678,2644.2,2644.0,1.36]
[1729571144951,1.36,2644.1,2643.9,0.37835]
[1729571145254,1.36,2644.1,2644.0,1.36]
[1729571145844,4.5678,2644.2,2644.0,1.36]
[1729571146249,3.2078,2644.2,2644.1,1.36]
[1729571146451,4.5678,2644.2,2644.1,1.36]
[1729571147950,3.2078,2644.2,2644.1,1.36]
[1729571149859,1.36,2644.3,2644.1,1.36]
[1729571150552,1.36,2644.2,2644.0,1.73834]
[1729571151059,1.36,2644.2,2644.0,1.36]
[1729571151254,1.36,2644.2,2644.1,1.36]
[1729571152155,3.58609,2644.4,2644.1,1.36]
[1729571152361,1.36,2644.3,2644.1,1.36]
[1729571152550,1.36,2644.2,2644.1,1.36]
[1729571152746,1.36,2644.2,2644.0,1.36]
[1729571153251,1.36,2644.2,2644.0,1.73834]
[1729571153453,1.36,2644.2,2644.0,1.36]
[1729571154660,1.36,2644.3,2644.1,1.36]
[1729571155855,4.5678,2644.4,2644.2,1.36]
[1729571156261,1.36,2644.3,2644.2,1.36]
[1729571156963,1.36,2644.3,2644.1,1.36]
[1729571157961,1.36,2644.3,2644.1,1.73833]
[1729571158163,1.36,2644.3,2644.1,1.36]
[1729571158360,4.5678,2644.4,2644.2,1.36]
[1729571160962,0.06157461,2644.3,2644.2,1.36]
[1729571161160,1.42157461,2644.3,2644.1,1.36]
[1729571161362,0.06157461,2644.2,2644.1,1.36]
[1729571161572,0.06157271,2644.2,2644.1,1.36]
[1729571161863,1.42157271,2644.2,2644.1,1.36]
[1729571162267,1.42157271,2644.2,2644.0,1.36]
[1729571162470,0.06157271,2644.1,2644.0,1.36]
[1729571163069,0.06157271,2644.1,2644.0,1.73834]
[1729571163372,1.36,2644.3,2644.0,1.73834]
[1729571163565,1.36,2644.3,2644.2,1.36]
[1729571163766,1.42157402,2644.3,2644.2,1.36]
[1729571164567,1.42157402,2644.3,2644.1,1.36]
[1729571164764,0.06157402,2644.2,2644.1,1.36]
[1729571165266,1.42157402,2644.2,2644.0,1.36]
[1729571165471,0.06157402,2644.1,2644.0,1.36]
[1729571165666,0.06157035,2644.1,2644.0,1.36]
[1729571166270,1.42157035,2644.1,2644.0,1.36]
[1729571166471,0.06157035,2644.1,2644.0,1.36]
[1729571168065,0.06157035,2644.1,2643.8,3.58617]
[1729571168066,1.42157035,2644.1,2643.8,3.2078]
[1729571168275,1.36,2643.9,2643.8,3.2078]
[1729571168574,0.06157035,2643.9,2643.8,4.5678]
[1729571168767,0.06157035,2644.0,2643.8,4.5678]
[1729571169073,1.36,2643.9,2643.8,4.5678]
[1729571169463,1.36,2643.9,2643.8,3.2078]
[1729571169968,1.79992307,2643.9,2643.6,1.36]
[1729571170169,1.36,2643.8,2643.6,1.36]
[1729571170769,0.37836,2643.9,2643.6,1.36]
[1729571170770,1.36,2643.7,2643.6,1.36]
[1729571171773,0.3784,2643.6,2643.3,40.8]
[1729571172077,1.36,2643.4,2643.3,40.8]
[1729571172271,1.36,2643.4,2643.3,42.16]
[1729571175072,1.36,2643.6,2643.3,45.9432]
[1729571175370,1.36,2643.6,2643.5,1.36]
[1729571175576,1.42155886,2643.6,2643.5,1.36]
[1729571176579,1.4215588,2643.6,2643.5,1.36]
[1729571176768,1.36,2643.6,2643.5,1.36]
[1729571176973,1.42155879,2643.6,2643.5,1.36]
[1729571177474,1.36,2643.6,2643.5,1.36]
[1729571177778,1.4215588,2643.6,2643.5,1.36]
[1729571178773,1.80670011,2643.6,2643.5,1.36]
[1729571180584,1.80669904,2643.6,2643.5,1.36]
[1729571181481,1.74514131,2643.6,2643.5,1.36]
[1729571181686,1.80670028,2643.6,2643.5,1.36]
[1729571182181,1.74514131,2643.6,2643.5,1.36]
[1729571182384,1.80670025,2643.6,2643.5,1.36]
[1729571183485,1.74514131,2643.6,2643.5,1.36]
[1729571184083,1.74514131,2643.6,2643.4,1.36]
[1729571184386,1.36,2643.5,2643.4,1.36]
[1729571184988,1.36,2643.6,2643.4,1.36]
[1729571185289,1.36,2643.6,2643.5,1.36]
[1729571191394,1.42148678,2643.6,2643.5,1.36]
[1729571194402,1.42149398,2643.6,2643.5,1.36]
[1729571197700,1.42149429,2643.6,2643.5,1.36]
[1729571197899,1.42149429,2643.6,2643.4,1.36]
[1729571198096,0.06149429,2643.5,2643.4,1.36]
[1729571198496,1.42149429,2643.5,2643.4,1.36]
[1729571198893,0.06149429,2643.5,2643.4,1.36]
[1729571199201,1.35445268,2643.7,2643.4,1.36]
[1729571199202,0.06149429,2643.6,2643.4,1.36]
[1729571199398,1.36,2643.6,2643.4,1.36]
[1729571206013,1.36,2643.6,2643.3,41.17844]
[1729571206014,1.36,2643.5,2643.3,40.8]
[1729571206306,1.36,2643.4,2643.1,4.5678]
[1729571206510,1.36,2643.2,2643.1,3.2078]
[1729571206910,1.36,2643.2,2642.8,44.0078]
[1729571207106,1.36,2643.2,2642.8,45.3678]
[1729571207107,1.36,2642.9,2642.8,45.3678]
[1729571208906,1.36,2642.9,2642.8,42.16]
[1729571209507,1.36,2642.9,2642.8,40.8]
[1729571209899,1.36,2642.9,2642.4,3.2078]
[1729571209900,1.36,2642.9,2642.5,1.36]
[1729571210104,1.36,2642.9,2642.4,3.2078]
[1729571210105,1.36,2642.7,2642.6,1.73854]
[1729571210306,1.36,2642.7,2642.6,42.53854]
[1729571210715,1.36,2642.7,2642.6,42.16]
[1729571211318,1.36,2642.7,2642.6,40.8]
[1729571212505,1.36,2642.7,2642.6,42.16]
[1729571212910,3.2078,2643.1,2642.6,49.1518]
[1729571213207,3.2078,2643.1,2643.0,1.36]
[1729571213815,4.5678,2643.1,2643.0,1.36]
[1729571215406,0.39908593,2643.2,2643.0,1.36]
[1729571215407,1.36,2643.2,2643.0,1.36]
[1729571215613,1.36,2643.2,2643.1,0.37847]
[1729571217018,1.36,2643.2,2643.1,1.73847]
[1729571217214,3.2078,2643.5,2643.3,0.37844]
[1729571217415,4.5678,2643.5,2643.4,1.36]
[1729571218511,4.5678,2643.5,2643.3,1.73844]
[1729571218711,4.5678,2643.5,2643.0,3.2078]
[1729571218712,1.36,2643.4,2643.0,4.5678]
[1729571219019,1.36,2643.1,2642.9,2.35119054]
[1729571219320,1.36,2643.1,2643.0,1.73849]
[1729571222620,1.36,2643.2,2643.1,0.37847]
[1729571222818,1.36,2643.2,2643.1,1.73847]
[1729571223725,3.2078,2643.5,2643.3,0.37844]
[1729571223912,1.42148226,2643.4,2643.3,0.37844]
[1729571225022,1.42148256,2643.4,2643.3,0.37844]
[1729571225923,1.42148256,2643.4,2643.1,0.37846]
[1729571226125,0.06148256,2643.3,2643.2,0.37846]
[1729571226324,1.36,2643.3,2643.0,3.2078]
[1729571226525,1.36,2643.1,2643.0,4.94628]
[1729571226823,1.36,2643.2,2643.0,4.94628]
[1729571229518,1.36,2643.2,2643.0,1.73848]
[1729571235116,1.36,2643.2,2643.0,1.36]
[1729571235315,1.74445987,2643.3,2643.1,0.37846]
[1729571235525,1.36,2643.3,2643.1,0.37846]
[1729571236121,1.36,2643.3,2643.2,1.36]
[1729571238525,1.36,2643.3,2643.0,1.73848]
[1729571239626,1.36,2643.2,2643.0,1.36]
[1729571239825,1.36,2643.1,2642.9,1.73849]
[1729571248831,1.74357612,2643.2,2643.0,1.36]
[1729571249027,1.74357612,2643.2,2643.0,1.73848]
[1729571249234,1.74357612,2643.2,2643.1,0.37847]
[1729571249734,1.74357612,2643.2,2643.0,1.73848]
[1729571250435,1.74357612,2643.2,2643.1,0.37847]
[1729571250631,1.74357612,2643.2,2643.0,1.73848]
[1729571250836,1.74357612,2643.2,2643.1,0.37847]
[1729571253530,1.74357612,2643.2,2643.0,1.36]
[1729571253736,1.74357612,2643.2,2643.0,1.73848]
[1729571254742,1.74357612,2643.2,2643.1,0.37847]
[1729571255444,0.958,2643.4,2643.2,0.37845]
[1729571255643,1.36,2643.3,2643.2,0.37845]
[1729571256047,1.36,2643.3,2643.1,1.73846]
[1729571256246,1.36,2643.3,2643.2,0.37846]